{"text_format":"1","workbook":"xlsx","n_sheets":4,"sheets":["IN-1","ZIN-1","ZIN-2","ZIN-3"],"not_rendered":{"charts":0,"images":14,"macros":1,"external_links":0,"defined_names":4,"comments":0,"pivot_tables":0},"unopened":[],"bounds":{"document_bytes":16777216,"sheet_cells":100000,"rows_first":2000,"rows_last":500,"rows_between":2000,"halvings":0,"cell_chars":16384,"cell_head_chars":4096},"cells_cut":0,"cells_raw":0,"read":"whole","date_system":"1900"}

{"sheet":"IN-1","index":0,"n_rows":275,"n_cols":25,"rows_kept":275,"cut":false,"hidden":false,"merged":[[268,24,268,27],[269,24,269,27],[270,24,270,27],[271,24,271,27],[272,24,272,27],[273,24,273,27],[274,24,274,27],[106,0,106,22],[155,0,155,22],[209,0,209,22],[259,24,259,27],[260,24,260,27],[261,24,261,27],[262,24,262,27],[263,24,263,27],[264,24,264,27],[265,24,265,27],[266,24,266,27],[267,24,267,27],[107,1,107,22],[108,1,108,22],[109,2,109,5],[109,6,109,18],[109,19,109,22],[4,3,4,12],[5,1,5,22],[6,1,6,22],[7,1,7,22],[8,1,8,3],[8,4,8,22],[0,1,0,22],[1,1,1,22],[2,1,2,22],[3,13,4,22],[4,1,4,2],[3,1,3,12],[13,1,13,3],[13,4,13,22],[14,1,14,3],[14,4,14,22],[15,1,15,3],[15,4,15,22],[9,4,9,22],[10,1,10,3],[10,4,10,22],[11,1,11,3],[11,4,11,22],[12,1,12,3],[12,4,12,22],[22,2,22,22],[23,2,23,11],[23,12,23,14],[23,15,23,16],[23,17,23,22],[24,1,24,22],[16,1,16,22],[17,1,17,22],[18,2,18,22],[19,2,19,22],[20,2,20,22],[21,2,21,9],[21,10,21,15],[21,16,21,22],[32,2,32,13],[32,14,32,22],[33,2,33,22],[35,1,35,22],[36,2,36,10],[36,11,36,17],[36,18,36,22],[25,1,25,22],[26,2,26,22],[28,1,28,22],[29,1,29,22],[30,1,30,22],[31,2,31,13],[31,14,31,22],[27,4,27,14],[27,15,27,22],[34,2,34,10],[34,11,34,22],[40,2,40,7],[40,8,40,16],[40,17,40,22],[41,2,41,8],[41,9,41,19],[41,21,41,22],[37,2,37,10],[37,11,37,17],[37,18,37,22],[38,1,38,22],[39,2,39,7],[39,8,39,16],[39,17,39,22],[45,1,45,22],[46,2,46,7],[46,8,46,16],[46,17,46,22],[47,2,47,7],[47,8,47,16],[47,17,47,22],[42,2,42,8],[42,9,42,19],[42,21,42,22],[43,2,43,13],[43,14,43,22],[44,2,44,13],[44,14,44,22],[50,2,50,13],[50,14,50,22],[51,2,51,13],[51,14,51,22],[52,1,52,22],[53,1,53,18],[53,19,53,21],[48,2,48,8],[48,9,48,19],[48,21,48,22],[49,2,49,8],[49,9,49,19],[49,21,49,22],[57,1,57,22],[58,1,58,22],[59,1,59,22],[60,1,60,18],[60,19,60,22],[61,2,61,18],[61,19,61,22],[54,0,54,22],[55,1,55,22],[56,1,56,22],[65,2,65,18],[65,19,65,22],[66,2,66,18],[66,19,66,22],[67,2,67,18],[67,19,67,22],[62,2,62,18],[62,19,62,22],[63,2,63,18],[63,19,63,22],[64,2,64,18],[64,19,64,22],[73,2,73,22],[74,2,74,18],[74,19,74,22],[75,2,75,18],[75,19,75,22],[76,2,76,18],[76,19,76,22],[68,2,68,18],[68,19,71,22],[69,2,69,18],[70,2,70,18],[71,2,71,18],[72,1,72,22],[81,2,81,18],[81,19,81,22],[82,2,82,18],[82,19,82,22],[83,2,83,18],[83,19,83,22],[77,2,77,18],[77,19,77,22],[78,1,78,22],[79,2,79,22],[80,2,80,18],[80,19,80,22],[90,2,90,18],[90,19,90,22],[91,2,91,18],[91,19,91,22],[92,2,92,5],[92,6,92,18],[92,19,92,22],[84,1,84,22],[85,2,85,22],[86,2,86,22],[87,2,87,22],[88,2,88,22],[89,2,89,18],[89,19,89,22],[95,2,95,5],[95,6,95,18],[95,19,95,22],[96,2,96,18],[96,19,96,22],[97,2,97,18],[97,19,97,22],[93,2,93,5],[93,6,93,18],[93,19,93,22],[94,2,94,5],[94,6,94,18],[94,19,94,22],[100,2,100,5],[100,6,100,18],[100,19,100,22],[101,2,101,5],[101,6,101,18],[101,19,101,22],[98,2,98,5],[98,6,98,18],[98,19,98,22],[99,2,99,5],[99,6,99,18],[99,19,99,22],[102,2,102,18],[102,19,102,22],[103,2,103,18],[103,19,103,22],[104,1,104,22],[105,1,105,3],[105,4,105,6],[105,7,105,22],[113,2,113,18],[113,19,113,22],[114,2,114,18],[114,19,114,22],[115,2,115,5],[115,6,115,18],[115,19,115,22],[110,2,110,5],[110,6,110,18],[110,19,110,22],[111,2,112,5],[111,6,111,18],[111,19,111,22],[112,6,112,18],[112,19,112,22],[118,2,118,5],[118,6,118,18],[118,19,118,22],[119,2,119,18],[119,19,119,22],[120,2,120,18],[120,19,120,22],[116,2,116,5],[116,6,116,18],[116,19,116,22],[117,2,117,5],[117,6,117,18],[117,19,117,22],[123,2,123,5],[123,6,123,18],[123,19,123,22],[124,2,124,5],[124,6,124,18],[124,19,124,22],[121,2,121,5],[121,6,121,18],[121,19,121,22],[122,2,122,5],[122,6,122,18],[122,19,122,22],[129,2,129,5],[129,6,129,18],[129,19,129,22],[130,2,130,5],[130,6,130,18],[130,19,130,22],[125,1,125,22],[126,2,126,22],[127,2,127,18],[127,19,127,22],[128,2,128,18],[128,19,128,22],[133,2,133,18],[133,19,133,22],[134,2,134,18],[134,19,134,22],[135,2,135,5],[135,6,135,18],[135,19,135,22],[131,2,131,5],[131,6,131,18],[131,19,131,22],[132,2,132,5],[132,6,132,18],[132,19,132,22],[138,2,138,5],[138,6,138,18],[138,19,138,22],[139,1,139,22],[140,2,140,22],[141,2,141,18],[141,19,141,22],[136,2,136,5],[136,6,136,18],[136,19,136,22],[137,2,137,5],[137,6,137,18],[137,19,137,22],[145,2,145,5],[145,6,145,18],[145,19,145,22],[146,2,146,5],[146,6,146,18],[146,19,146,22],[142,2,142,18],[142,19,142,22],[143,2,143,5],[143,6,143,18],[143,19,143,22],[144,2,144,5],[144,6,144,18],[144,19,144,22],[150,2,150,5],[150,6,150,18],[150,19,150,22],[151,2,151,5],[151,6,151,18],[151,19,151,22],[147,2,147,18],[147,19,147,22],[148,2,148,18],[148,19,148,22],[149,2,149,5],[149,6,149,18],[149,19,149,22],[156,1,156,22],[157,1,157,22],[158,1,158,22],[159,1,159,22],[152,2,152,5],[152,6,152,18],[152,19,152,22],[153,1,153,22],[154,1,154,18],[154,19,154,21],[165,2,165,18],[165,19,165,22],[166,1,166,22],[167,2,167,22],[168,2,168,18],[168,19,168,22],[160,1,160,22],[161,1,163,18],[161,19,161,22],[162,19,162,22],[163,19,163,22],[164,2,164,18],[164,19,164,22],[173,2,173,18],[173,19,173,22],[174,1,174,22],[175,1,175,22],[176,2,176,22],[177,2,177,10],[177,11,177,17],[177,18,177,22],[169,2,169,18],[169,19,169,22],[170,1,170,22],[171,2,171,22],[172,2,172,18],[172,19,172,22],[181,2,181,22],[182,2,182,13],[182,14,182,22],[183,2,183,13],[183,14,183,22],[184,2,184,22],[178,2,178,10],[178,11,178,17],[178,18,178,19],[178,21,178,22],[179,1,179,22],[180,1,180,22],[191,2,191,13],[191,14,191,22],[192,2,192,13],[192,14,192,22],[193,2,193,13],[193,14,193,22],[185,2,185,22],[186,1,186,22],[187,1,187,22],[188,1,188,22],[189,2,189,22],[190,2,190,13],[190,14,190,22],[198,2,198,13],[198,14,198,22],[199,1,199,22],[200,2,200,13],[200,14,200,22],[201,2,201,13],[201,14,201,22],[194,1,194,22],[195,2,195,13],[195,14,195,22],[196,2,196,13],[196,14,196,22],[197,2,197,13],[197,14,197,22],[206,2,206,22],[207,1,207,22],[208,1,208,3],[208,4,208,6],[208,7,208,22],[202,2,202,13],[202,14,202,22],[203,2,203,13],[203,14,203,22],[204,1,204,22],[205,1,205,22],[274,1,274,18],[274,19,274,21],[215,2,215,22],[216,2,216,22],[217,2,217,22],[218,1,218,22],[219,1,219,22],[220,1,220,22],[210,1,210,22],[211,1,211,22],[212,2,212,22],[213,2,213,22],[214,2,214,22]]}
[]
[null," WYPEŁNIĆ DUŻYMI, DRUKOWANYMI LITERAMI, CZARNYM LUB NIEBIESKIM KOLOREM."]
[]
[null," 1. Identyfikator podatkowy NIP / numer PESEL (niepotrzebne skreślić)1)",null,null,null,null,null,null,null,null,null,null,null," 2. Nr dokumentu"]
[]
[null,"IN-1"]
[null," INFORMACJA O NIERUCHOMOŚCIACH I OBIEKTACH BUDOWLANYCH"]
[]
[null," Podstawa prawna:",null,null,"Art. 6 ust. 6 i 10 ustawy z dnia 12 stycznia 1991 r. o podatkach i opłatach lokalnych (Dz. U. z 2018 r. poz.1445, z późn. zm.)."]
[null,null,null,null,"zwanej dalej „ustawą”."]
[null," Składający:",null,null,"Osoby fizyczne będące właścicielami nieruchomości lub obiektów budowlanych, posiadaczami samoistnymi nieruchomości '"]
[null,null,null,null,"lub obiektów budowlanych, użytkownikami wieczystymi gruntów, posiadaczami nieruchomości lub ich części albo obiektów '"]
[null,null,null,null,"budowlanych lub ich części, stanowiących własność Skarbu Państwa lub jednostki samorządu terytorialnego."]
[null," Termin składania:",null,null,"W terminie 14 dni od dnia wystąpienia okoliczności uzasadniających powstanie albo wygaśnięcie obowiązku podatkowego"]
[null,null,null,null,"lub od dnia zaistnienia zdarzenia mającego wpływ na wysokość opodatkowania, o którym mowa w art. 6 ust. 3 ustawy."]
[null," Miejsce składania:",null,null,"Organ podatkowy właściwy ze względu na miejsce położenia przedmiotów opodatkowania."]
[]
[null," A. MIEJSCE I CEL SKŁADANIA INFORMACJI"]
[null,null," 3. Nazwa i adres siedziby organu podatkowego"]
[]
[null,null," 4. Cel złożenia formularza (zaznaczyć właściwy kwadrat):"]
[null,null,null,null,null,null,null,null,null,null," 1. złożenie informacji",null,null,null,null,null," 2. korekta informacji 2)"]
[null,null," 5. Okres – od którego informacja obowiązuje"]
[null,null," (miesiąc - rok)"]
[]
[null," B. PODMIOT ZOBOWIĄZANY DO ZŁOŻENIA INFORMACJI"]
[null,null," 6. Rodzaj podmiotu (zaznaczyć właściwy kwadrat):"]
[null,null,null,null," 1. właściciel, użytkownik wieczysty lub posiadacz",null,null,null,null,null,null,null,null,null,null," 2. współwłaściciel, współużytkownik wieczysty lub współposiadacz"]
[]
[null," C. DANE PODATNIKA"]
[null," C.1. DANE IDENTYFIKACYJNE"]
[null,null," 7. Nazwisko",null,null,null,null,null,null,null,null,null,null,null," 8. Pierwsze imię"]
[]
[null,null," 9. Identyfikator REGON (w przypadku osób fizycznych REGON podaje się, o ile został nadany)"]
[]
[null," Pola 10, 11, 12 wypełnia osoba fizyczna w przypadku, gdy numer PESEL nie został nadany."]
[null,null," 10. Data urodzenia (dzień - miesiąc - rok)",null,null,null,null,null,null,null,null," 11. Imię ojca",null,null,null,null,null,null," 12. Imię matki"]
[]
[null," C.2. ADRES ZAMIESZKANIA"]
[null,null," 13. Kraj",null,null,null,null,null," 14. Województwo",null,null,null,null,null,null,null,null," 15. Powiat"]
[]
[null,null," 16. Gmina",null,null,null,null,null,null," 17. Ulica",null,null,null,null,null,null,null,null,null,null," 18. Nr domu"," 19. Nr lokalu"]
[]
[null,null," 20. Miejscowość",null,null,null,null,null,null,null,null,null,null,null," 21. Kod pocztowy"]
[]
[null," C.3. ADRES DO DORĘCZEŃ Należy wypełnić tylko wówczas, gdy adres do doręczeń jest inny niż w części C.2."]
[null,null," 22. Kraj",null,null,null,null,null," 23. Województwo",null,null,null,null,null,null,null,null," 24. Powiat"]
[]
[null,null," 25. Gmina",null,null,null,null,null,null," 26. Ulica",null,null,null,null,null,null,null,null,null,null," 27. Nr domu"," 28. Nr lokalu"]
[]
[null,null," 29. Miejscowość",null,null,null,null,null,null,null,null,null,null,null," 30. Kod pocztowy"]
[]
[]
[null,null,null,null,null,null,null,null,null,null,null,null,null,null,null,null,null,null,null,"IN-1(1)",null,null," 1/5"]
[" - STRONA 2 -"]
[null," WYPEŁNIĆ DUŻYMI, DRUKOWANYMI LITERAMI, CZARNYM LUB NIEBIESKIM KOLOREM."]
[]
[null," D. DANE O PRZEDMIOTACH OPODATKOWANIA PODLEGAJĄCYCH OPODATKOWANIU"]
[null," D.1. GRUNTY"]
[]
[null,null,null,null,null,null,null,null,null,null,null,null,null,null,null,null,null,null,null," Powierzchnia w m2 / ha3)"]
[null,null," Związane z prowadzeniem działalności gospodarczej, bez względu na sposób zakwalifikowania w ewidencji ",null,null,null,null,null,null,null,null,null,null,null,null,null,null,null,null," 31. "]
[null,null," gruntów i budynków"]
[null,null," Pod wodami powierzchniowymi stojącymi lub wodami powierzchniowymi płynącymi jezior i zbiorników ",null,null,null,null,null,null,null,null,null,null,null,null,null,null,null,null," 32. "]
[null,null," sztucznych"]
[null,null," Pozostałe, w tym zajęte na prowadzenie odpłatnej statutowej działalności pożytku publicznego przez ",null,null,null,null,null,null,null,null,null,null,null,null,null,null,null,null," 33. "]
[null,null," organizacje pożytku publicznego"]
[null,null," Niezabudowane objęte obszarem rewitalizacji, o którym mowa w ustawie z dnia 9 października 2015 r. o rewitalizacji  '",null,null,null,null,null,null,null,null,null,null,null,null,null,null,null,null," 34. "]
[null,null," (Dz. U. z 2018 r. poz. 1398, z późn. zm.), i położone na terenach, dla których miejscowy plan zagospodarowania  '"]
[null,null," przestrzennego przewiduje przeznaczenie pod zabudowę mieszkaniową, usługową albo zabudowę o przeznaczeniu  '"]
[null,null," mieszanym obejmującym wyłącznie te rodzaje zabudowy, jeżeli od dnia wejścia w życie tego planu w odniesieniu do  '"]
[null,null,"  tych gruntów upłynął okres 4 lat, a w tym czasie nie zakończono budowy zgodnie z przepisami prawa budowlanego"]
[null," D.1.1. INNE GRUNTY (1) Należy wypełnić tylko dla rodzajów przedmiotów opodatkowania innych niż określone w części D.1."]
[null,null," Podać nazwę rodzaju przedmiotu opodatkowania lub jednostkę redakcyjną - zgodnie z uchwałą rady gminy."]
[null,null," 35. Rodzaj przedmiotu opodatkowania",null,null,null,null,null,null,null,null,null,null,null,null,null,null,null,null," 36. "]
[]
[null,null," 37. Rodzaj przedmiotu opodatkowania",null,null,null,null,null,null,null,null,null,null,null,null,null,null,null,null," 38. "]
[]
[null," D.1.2. INNE GRUNTY (2) Należy wypełnić tylko dla rodzajów przedmiotów opodatkowania innych niż określone w części D.1."]
[null,null," Podać nazwę rodzaju przedmiotu opodatkowania lub jednostkę redakcyjną - zgodnie z uchwałą rady gminy."]
[null,null," 35. Rodzaj przedmiotu opodatkowania",null,null,null,null,null,null,null,null,null,null,null,null,null,null,null,null," 36. "]
[]
[null,null," 37. Rodzaj przedmiotu opodatkowania",null,null,null,null,null,null,null,null,null,null,null,null,null,null,null,null," 38. "]
[]
[null," D.2. BUDYNKI LUB ICH CZĘŚCI Do powierzchni użytkowej budynku lub jego części zalicza się powierzchnię mierzoną po"]
[null,null,"wewnętrznej długości ścian na wszystkich kondygnacjach, z wyjątkiem powierzchni klatek schodowych oraz szybów dźwigowych; '"]
[null,null,"za kondygnację uważa się również garaże podziemne, piwnice, sutereny i poddasza użytkowe."]
[null,null,"Powierzchnię pomieszczeń lub ich części oraz część kondygnacji o wysokości w świetle od 1,40 m do 2,20 m zalicza się do powierzchni '"]
[null,null,"użytkowej budynku w 50%, a jeżeli wysokość jest mniejsza niż 1,40 m, powierzchnię tę pomija się."]
[null,null,null,null,null,null,null,null,null,null,null,null,null,null,null,null,null,null,null," Powierzchnia użytkowa w m2"]
[null,null," Budynki mieszkalne - ogółem",null,null,null,null,null,null,null,null,null,null,null,null,null,null,null,null," 39. "]
[null,null,null,null,null,null,null,null,null,null,null,null,null,null,null,null,null,null,null,{"$f":"IF(AND(T94=\"\",T96=\"\"),\"\",SUM(T94,T96))","v":""}]
[null,null," w tym kondygnacji",null,null,null," - od 1,40 do 2,20 m",null,null,null,null,null,null,null,null,null,null,null,null," 40. "]
[null,null," o wysokości:"]
[null,null,null,null,null,null," - powyżej 2,20 m",null,null,null,null,null,null,null,null,null,null,null,null," 41. "]
[]
[null,null," Związane z prowadzeniem działalności gospodarczej oraz budynki mieszkalne lub ich części zajęte",null,null,null,null,null,null,null,null,null,null,null,null,null,null,null,null," 42. "]
[null,null," na prowadzenie działalności gospodarczej - ogółem",null,null,null,null,null,null,null,null,null,null,null,null,null,null,null,null,{"$f":"IF(AND(T100=\"\",T102=\"\"),\"\",SUM(T100,T102))","v":""}]
[null,null," w tym kondygnacji",null,null,null," - od 1,40 do 2,20 m",null,null,null,null,null,null,null,null,null,null,null,null," 43. "]
[null,null," o wysokości:"]
[null,null,null,null,null,null," - powyżej 2,20 m",null,null,null,null,null,null,null,null,null,null,null,null," 44. "]
[]
[null,null," Zajęte na prowadzenie działalności gospodarczej w zakresie obrotu kwalifikowanym materiałem siewnym - ",null,null,null,null,null,null,null,null,null,null,null,null,null,null,null,null," 45. "]
[null,null," ogółem",null,null,null,null,null,null,null,null,null,null,null,null,null,null,null,null,{"$f":"IF(AND(T111=\"\",T113=\"\"),\"\",SUM(T111,T113))","v":""}]
[]
[null,"IN-1(1)",null,null,"2/5"]
[" - STRONA 3 -"]
[null," WYPEŁNIĆ DUŻYMI, DRUKOWANYMI LITERAMI, CZARNYM LUB NIEBIESKIM KOLOREM."]
[]
[null,null," w tym kondygnacji",null,null,null," - od 1,40 do 2,20 m",null,null,null,null,null,null,null,null,null,null,null,null," 46. "]
[null,null," o wysokości:"]
[null,null,null,null,null,null," - powyżej 2,20 m",null,null,null,null,null,null,null,null,null,null,null,null," 47. "]
[]
[null,null," Związane z udzielaniem świadczeń zdrowotnych w rozumieniu przepisów o działalności leczniczej, zajęte ",null,null,null,null,null,null,null,null,null,null,null,null,null,null,null,null," 48. "]
[null,null," przez podmioty udzielające tych świadczeń - ogółem",null,null,null,null,null,null,null,null,null,null,null,null,null,null,null,null,{"$f":"IF(AND(T117=\"\",T119=\"\"),\"\",SUM(T117,T119))","v":""}]
[null,null," w tym kondygnacji",null,null,null," - od 1,40 do 2,20 m",null,null,null,null,null,null,null,null,null,null,null,null," 49. "]
[null,null," o wysokości:"]
[null,null,null,null,null,null," - powyżej 2,20 m",null,null,null,null,null,null,null,null,null,null,null,null," 50. "]
[]
[null,null," Pozostałe, w tym zajęte na prowadzenie odpłatnej statutowej działalności pożytku publicznego przez ",null,null,null,null,null,null,null,null,null,null,null,null,null,null,null,null," 51. "]
[null,null," organizacje pożytku publicznego - ogółem",null,null,null,null,null,null,null,null,null,null,null,null,null,null,null,null,{"$f":"IF(AND(T123=\"\",T125=\"\"),\"\",SUM(T123,T125))","v":""}]
[null,null," w tym kondygnacji",null,null,null," - od 1,40 do 2,20 m",null,null,null,null,null,null,null,null,null,null,null,null," 52. "]
[null,null," o wysokości:"]
[null,null,null,null,null,null," - powyżej 2,20 m",null,null,null,null,null,null,null,null,null,null,null,null," 53. "]
[]
[null," D.2.1. INNE BUDYNKI LUB ICH CZĘŚCI (1) Należy wypełnić tylko dla rodzajów przedmiotów opodatkowania innych niż"]
[null,null," określone w części D.2. Podać nazwę rodzaju przedmiotu opodatkowania lub jednostkę redakcyjną - zgodnie z uchwałą rady gminy."]
[null,null," 54. Rodzaj przedmiotu opodatkowania",null,null,null,null,null,null,null,null,null,null,null,null,null,null,null,null," 55. "]
[null,null,null,null,null,null,null,null,null,null,null,null,null,null,null,null,null,null,null,{"$f":"T131+T133","v":0}]
[null,null," w tym kondygnacji",null,null,null," - od 1,40 do 2,20 m",null,null,null,null,null,null,null,null,null,null,null,null," 56. "]
[null,null," o wysokości:"]
[null,null,null,null,null,null," - powyżej 2,20 m",null,null,null,null,null,null,null,null,null,null,null,null," 57. "]
[]
[null,null," 58. Rodzaj przedmiotu opodatkowania",null,null,null,null,null,null,null,null,null,null,null,null,null,null,null,null," 59. "]
[null,null,null,null,null,null,null,null,null,null,null,null,null,null,null,null,null,null,null,{"$f":"T137+T139","v":0}]
[null,null," w tym kondygnacji",null,null,null," - od 1,40 do 2,20 m",null,null,null,null,null,null,null,null,null,null,null,null," 60. "]
[null,null," o wysokości:"]
[null,null,null,null,null,null," - powyżej 2,20 m",null,null,null,null,null,null,null,null,null,null,null,null," 61. "]
[]
[null," D.2.2. INNE BUDYNKI LUB ICH CZĘŚCI (2) Należy wypełnić tylko dla rodzajów przedmiotów opodatkowania innych niż"]
[null,null," określone w części D.2. Podać nazwę rodzaju przedmiotu opodatkowania lub jednostkę redakcyjną - zgodnie z uchwałą rady gminy."]
[null,null," 54. Rodzaj przedmiotu opodatkowania",null,null,null,null,null,null,null,null,null,null,null,null,null,null,null,null," 55. "]
[null,null,null,null,null,null,null,null,null,null,null,null,null,null,null,null,null,null,null,{"$f":"IF(AND(T145=\"\",T147=\"\"),\"\",SUM(T145,T147))","v":""}]
[null,null," w tym kondygnacji",null,null,null," - od 1,40 do 2,20 m",null,null,null,null,null,null,null,null,null,null,null,null," 56. "]
[null,null," o wysokości:"]
[null,null,null,null,null,null," - powyżej 2,20 m",null,null,null,null,null,null,null,null,null,null,null,null," 57. "]
[]
[null,null," 58. Rodzaj przedmiotu opodatkowania",null,null,null,null,null,null,null,null,null,null,null,null,null,null,null,null," 59. "]
[null,null,null,null,null,null,null,null,null,null,null,null,null,null,null,null,null,null,null,{"$f":"T151+T153","v":0}]
[null,null," w tym kondygnacji",null,null,null," - od 1,40 do 2,20 m",null,null,null,null,null,null,null,null,null,null,null,null," 60. "]
[null,null," o wysokości:"]
[null,null,null,null,null,null," - powyżej 2,20 m",null,null,null,null,null,null,null,null,null,null,null,null," 61. "]
[]
[]
[null,null,null,null,null,null,null,null,null,null,null,null,null,null,null,null,null,null,null,"IN-1(1)",null,null,"3/5"]
[" - STRONA 4 -"]
[]
[null," WYPEŁNIĆ DUŻYMI, DRUKOWANYMI LITERAMI, CZARNYM LUB NIEBIESKIM KOLOREM."]
[]
[null," D.3. BUDOWLE LUB ICH CZĘŚCI ZWIĄZANE Z PROWADZENIEM DZIAŁALNOŚCI"]
[null,"GOSPODARCZEJ"]
[null,null,null,null,null,null,null,null,null,null,null,null,null,null,null,null,null,null,null," Wartość"]
[null,null,null,null,null,null,null,null,null,null,null,null,null,null,null,null,null,null,null," (po zaokrągleniu do pełnych złotych)"]
[null,null,null,null,null,null,null,null,null,null,null,null,null,null,null,null,null,null,null," zł     "]
[null,null," Budowle",null,null,null,null,null,null,null,null,null,null,null,null,null,null,null,null," 62. "]
[]
[null," D.3.1. INNE BUDOWLE LUB ICH CZĘŚCI (1) Należy wypełnić tylko dla rodzajów przedmiotów opodatkowania innych niż '"]
[null,null," określone w części D.3. Podać nazwę rodzaju przedmiotu opodatkowania lub jednostkę redakcyjną - zgodnie z uchwałą rady gminy."]
[null,null," 63. Rodzaj przedmiotu opodatkowania",null,null,null,null,null,null,null,null,null,null,null,null,null,null,null,null," 64. "]
[]
[null," D.3.2. INNE BUDOWLE LUB ICH CZĘŚCI (2) Należy wypełnić tylko dla rodzajów przedmiotów opodatkowania innych niż '"]
[null,null," określone w części D.3. Podać nazwę rodzaju przedmiotu opodatkowania lub jednostkę redakcyjną - zgodnie z uchwałą rady gminy."]
[null,null," 63. Rodzaj przedmiotu opodatkowania",null,null,null,null,null,null,null,null,null,null,null,null,null,null,null,null," 64. "]
[]
[]
[null," E. INFORMACJA O ZAŁĄCZNIKACH Informację należy składać wraz z odpowiednimi załącznikami, które stanowią jej "]
[null,null,"integralną część."]
[null,null," 65. Liczba załączników ZIN-1",null,null,null,null,null,null,null,null," 66. Liczba załączników ZIN-2",null,null,null,null,null,null," 67. Dołączono załącznik ZIN-3"]
[null,null,null,null,null,null,null,null,null,null,null,null,null,null,null,null,null,null,null,null," 1. tak"," 2. nie"]
[]
[null," F. DODATKOWE INFORMACJE"]
[null,null,"Podanie informacji w części F nie jest obowiązkowe."]
[null,null," 68. Telefon podatnika / osoby reprezentującej podatnika4)",null,null,null,null,null,null,null,null,null,null,null," 69. E-mail podatnika / osoby reprezentującej podatnika4)"]
[]
[null,null," 70. Inne (np. określenie zdarzenia powodującego obowiązek złożenia informacji lub korekty informacji)"]
[]
[]
[null," G. PODPIS PODATNIKA (PODATNIKÓW) / OSOBY (OSÓB) REPREZENTUJĄCEJ PODATNIKA"]
[null," G.1. PODPIS PODATNIKA (1) / OSOBY REPREZENTUJĄCEJ PODATNIKA (1)4)"]
[null,null," Dotyczy podatnika wskazanego w części C.1."]
[null,null," 71. Pierwsze imię",null,null,null,null,null,null,null,null,null,null,null," 72. Nazwisko"]
[]
[null,null," 73. Data wypełnienia (dzień - miesiąc - rok)",null,null,null,null,null,null,null,null,null,null,null," 74. Podpis podatnika / osoby reprezentującej podatnika"]
[]
[null," G.2. PODPIS PODATNIKA (2) / OSOBY REPREZENTUJĄCEJ PODATNIKA (2)4)"]
[null,null," 75. Pierwsze imię",null,null,null,null,null,null,null,null,null,null,null," 76. Nazwisko"]
[]
[null,null," 77. Data wypełnienia (dzień - miesiąc - rok)",null,null,null,null,null,null,null,null,null,null,null," 78. Podpis podatnika / osoby reprezentującej podatnika"]
[]
[null," G.3. PODPIS PODATNIKA (3) / OSOBY REPREZENTUJĄCEJ PODATNIKA (3)4)"]
[null,null," 79. Pierwsze imię",null,null,null,null,null,null,null,null,null,null,null," 80. Nazwisko"]
[]
[null,null," 81. Data wypełnienia (dzień - miesiąc - rok)",null,null,null,null,null,null,null,null,null,null,null," 82. Podpis podatnika / osoby reprezentującej podatnika"]
[]
[]
[null," H. ADNOTACJE ORGANU PODATKOWEGO"]
[null,null," 83. Uwagi organu podatkowego"]
[]
[null,"IN-1(1)",null,null,"4/5"]
[" - STRONA 5 -"]
[null," WYPEŁNIĆ DUŻYMI, DRUKOWANYMI LITERAMI, CZARNYM LUB NIEBIESKIM KOLOREM."]
[null," Objaśnienia"]
[null,"1)"," Numer PESEL wpisują podatnicy będący osobami fizycznymi objętymi rejestrem PESEL, nieprowadzący działalności gospodarczej lub '"]
[null,null,"  niebędący zarejestrowanymi podatnikami podatku od towarów i usług. Identyfikator podatkowy NIP wpisują pozostali podatnicy."]
[null,"2)"," Zgodnie z przepisami Ordynacji podatkowej."]
[null,"3)"," Powierzchnię w ha należy wykazać wyłącznie dla gruntów pod wodami powierzchniowymi stojącymi lub wodami powierzchniowymi '"]
[null,null," płynącymi jezior i zbiorników sztucznych (z dokładnością do czterech miejsc po przecinku)."]
[null,"4)"," Niepotrzebne skreślić"]
[null,"  Pouczenie"]
[null,"Za podanie nieprawdy lub zatajenie prawdy i przez to narażenie podatku na uszczuplenie grozi odpowiedzialność przewidziana w Kodeksie"]
[null,"karnym skarbowym."]
[]
[]
[]
[]
[]
[]
[]
[]
[]
[]
[]
[]
[]
[]
[]
[]
[]
[]
[]
[]
[]
[]
[]
[]
[]
[]
[]
[]
[]
[]
[]
[]
[]
[]
[]
[]
[]
[]
[null,null,null,null,null,null,null,null,null,null,null,null,null,null,null,null,null,null,null,null,null,null,null,null,"Dolnośląskie"]
[null,null,null,null,null,null,null,null,null,null,null,null,null,null,null,null,null,null,null,null,null,null,null,null,"Kujawsko-Pomorskie"]
[null,null,null,null,null,null,null,null,null,null,null,null,null,null,null,null,null,null,null,null,null,null,null,null,"Lubelskie"]
[null,null,null,null,null,null,null,null,null,null,null,null,null,null,null,null,null,null,null,null,null,null,null,null,"Lubuskie"]
[null,null,null,null,null,null,null,null,null,null,null,null,null,null,null,null,null,null,null,null,null,null,null,null,"Łódzkie"]
[null,null,null,null,null,null,null,null,null,null,null,null,null,null,null,null,null,null,null,null,null,null,null,null,"Małopolskie"]
[null,null,null,null,null,null,null,null,null,null,null,null,null,null,null,null,null,null,null,null,null,null,null,null,"Mazowieckie"]
[null,null,null,null,null,null,null,null,null,null,null,null,null,null,null,null,null,null,null,null,null,null,null,null,"Opolskie"]
[null,null,null,null,null,null,null,null,null,null,null,null,null,null,null,null,null,null,null,null,null,null,null,null,"Podkarpackie"]
[null,null,null,null,null,null,null,null,null,null,null,null,null,null,null,null,null,null,null,null,null,null,null,null,"Podlaskie"]
[null,null,null,null,null,null,null,null,null,null,null,null,null,null,null,null,null,null,null,null,null,null,null,null,"Pomorskie"]
[null,null,null,null,null,null,null,null,null,null,null,null,null,null,null,null,null,null,null,null,null,null,null,null,"Śląskie"]
[null,null,null,null,null,null,null,null,null,null,null,null,null,null,null,null,null,null,null,null,null,null,null,null,"Świętokrzyskie"]
[null,null,null,null,null,null,null,null,null,null,null,null,null,null,null,null,null,null,null,null,null,null,null,null,"Warmińsko-Mazurskie"]
[null,null,null,null,null,null,null,null,null,null,null,null,null,null,null,null,null,null,null,null,null,null,null,null,"Wielkopolskie"]
[null,null,null,null,null,null,null,null,null,null,null,null,null,null,null,null,null,null,null,"IN-1(1)",null,null,"5/5",null,"Zachodniopomorskie"]

{"sheet":"ZIN-1","index":1,"n_rows":66,"n_cols":20,"rows_kept":66,"cut":false,"hidden":false,"merged":[[0,1,0,17],[1,1,1,17],[2,1,2,17],[3,12,4,17],[4,1,4,4],[4,5,4,11],[3,1,3,11],[10,1,10,17],[11,1,11,17],[12,1,12,17],[13,2,13,9],[13,10,13,17],[14,2,14,9],[14,10,14,17],[5,1,5,17],[6,1,6,17],[7,1,7,17],[8,1,9,15],[8,16,8,17],[9,16,9,17],[15,1,15,17],[16,1,16,17],[17,1,17,17],[18,1,19,1],[18,2,19,8],[18,9,18,10],[18,11,19,12],[18,13,19,13],[18,15,19,17],[19,9,19,10],[22,2,22,8],[22,9,22,10],[22,11,22,12],[22,15,22,17],[23,2,23,8],[23,9,23,10],[23,11,23,12],[23,15,23,17],[20,2,20,8],[20,9,20,10],[20,11,20,12],[20,15,20,17],[21,2,21,8],[21,9,21,10],[21,11,21,12],[21,15,21,17],[26,2,26,8],[26,9,26,10],[26,11,26,12],[26,15,26,17],[27,2,27,8],[27,9,27,10],[27,11,27,12],[27,15,27,17],[24,2,24,8],[24,9,24,10],[24,11,24,12],[24,15,24,17],[25,2,25,8],[25,9,25,10],[25,11,25,12],[25,15,25,17],[31,2,31,17],[32,2,32,17],[33,2,33,17],[34,2,34,17],[35,1,35,15],[36,1,36,17],[28,2,28,8],[28,9,28,10],[28,11,28,12],[28,15,28,17],[29,2,29,17],[30,2,30,17],[37,0,37,17],[38,1,38,17],[39,1,39,17],[40,1,40,17],[41,1,41,17],[42,1,43,1],[42,2,43,8],[42,9,42,10],[42,11,43,12],[42,13,43,13],[45,2,45,8],[45,9,45,10],[45,11,45,12],[45,15,45,17],[46,2,46,8],[46,9,46,10],[46,11,46,12],[46,15,46,17],[42,15,43,17],[43,9,43,10],[44,2,44,8],[44,9,44,10],[44,11,44,12],[44,15,44,17],[49,2,49,8],[49,9,49,10],[49,11,49,12],[49,15,49,17],[50,2,50,8],[50,9,50,10],[50,11,50,12],[50,15,50,17],[47,2,47,8],[47,9,47,10],[47,11,47,12],[47,15,47,17],[48,2,48,8],[48,9,48,10],[48,11,48,12],[48,15,48,17],[53,1,53,17],[54,2,54,5],[54,6,54,7],[54,8,54,10],[54,11,54,12],[54,15,54,17],[51,2,51,8],[51,9,51,10],[51,11,51,12],[51,15,51,17],[52,2,52,8],[52,9,52,10],[52,11,52,12],[52,15,52,17],[55,2,55,5],[55,6,55,7],[55,8,55,10],[55,11,55,12],[55,15,55,17],[56,2,56,5],[56,6,56,7],[56,8,56,10],[56,11,56,12],[56,15,56,17],[57,2,57,5],[57,6,57,7],[57,8,57,10],[57,11,57,12],[57,15,57,17],[58,2,58,5],[58,6,58,7],[58,8,58,10],[58,11,58,12],[58,15,58,17],[59,2,59,5],[59,6,59,7],[59,8,59,10],[59,11,59,12],[59,15,59,17],[60,2,60,5],[60,6,60,7],[60,8,60,10],[60,11,60,12],[60,15,60,17],[61,2,61,5],[61,6,61,7],[61,8,61,10],[61,11,61,12],[61,15,61,17],[62,2,62,5],[62,6,62,7],[62,8,62,10],[62,11,62,12],[62,15,62,17],[65,1,65,2],[65,4,65,17],[66,1,66,17],[63,2,63,5],[63,6,63,7],[63,8,63,10],[63,11,63,12],[63,15,63,17],[64,1,64,17]]}
[]
[null," WYPEŁNIĆ DUŻYMI, DRUKOWANYMI LITERAMI, CZARNYM LUB NIEBIESKIM KOLOREM."]
[]
[null," 1. Identyfikator podatkowy NIP / numer PESEL (niepotrzebne skreślić)1)",null,null,null,null,null,null,null,null,null,null," 2. Nr dokumentu"]
[null,null,null,null,null,{"$f":"IF('IN-1'!D5=\"\",\"\",'IN-1'!D5)","v":""}]
[null,"    ZIN-1"]
[null," ZAŁĄCZNIK DO INFORMACJI O NIERUCHOMOŚCIACH I OBIEKTACH BUDOWLANYCH"]
[null,"- DANE O PRZEDMIOTACH OPODATKOWANIA PODLEGAJĄCYCH OPODATKOWANIU"]
[null,null,null,null,null,null,null,null,null,null,null,null,null,null,null,null," 3. Nr załącznika"]
[null,null,null,null,null,null,null,null,null,null,null,null,null,null,null,null,"1"]
[]
[]
[null," A. DANE PODATNIKA WSKAZANEGO W CZĘŚCI C.1 INFORMACJI IN-1"]
[null,null," 4. Nazwisko",null,null,null,null,null,null,null," 5. Pierwsze imię"]
[null,null,{"$f":"IF('IN-1'!C33=\"\",\"\",'IN-1'!C33)","v":""},null,null,null,null,null,null,null,{"$f":"IF('IN-1'!O33=\"\",\"\",'IN-1'!O33)","v":""}]
[]
[null," B. DANE O POSZCZEGÓLNYCH PRZEDMIOTACH OPODATKOWANIA PODLEGAJĄCYCH OPODATKOWANIU"]
[null," B.1. GRUNTY"]
[null," Lp."," Położenie (adres, w tym dzielnica)",null,null,null,null,null,null,"Nr księgi wieczystej",null,"Nr obrębu\n(arkusza\nmapy)2)",null," Nr działki","Powierzchnia w m2 /","Forma władania4)"]
[null,null,null,null,null,null,null,null,null,"(zbioru dokumentów)",null,null,null,null,"ha3)"]
[null,null,"a",null,null,null,null,null,null,"b",null,"c",null,"d","e","f"]
[null,1]
[null,2]
[null,3]
[null,4]
[null,5]
[null,6]
[null,7]
[null,8]
[null,"1)","Numer PESEL wpisują podatnicy będący osobami fizycznymi objętymi rejestrem PESEL, nieprowadzący działalności gospodarczej lub niebędący zarejestrowanymi podatnikami podatku od towarów i usług.",null,null,null,null,null,null,null,null,null,null,null,null,null,null,null,null,"własność"]
[null,null,"Identyfikator podatkowy NIP wpisują pozostali podatnicy.",null,null,null,null,null,null,null,null,null,null,null,null,null,null,null,null,"użytkowanie wieczyste"]
[null,"2)","Numer obrębu należy podać wraz z numerem arkusza mapy ewidencyjnej w przypadku, gdy działki numerowane są w ramach arkusza mapy.",null,null,null,null,null,null,null,null,null,null,null,null,null,null,null,null,"posiadanie samoistne"]
[null,"3)","Powierzchnię w ha należy wykazać wyłącznie w przypadku gruntów pod wodami powierzchniowymi stojącymi lub wodami powierzchniowymi płynącymi jezior i zbiorników sztucznych (z dokładnością",null,null,null,null,null,null,null,null,null,null,null,null,null,null,null,null,"posiadanie zależne"]
[null,null,"do czterech miejsc po przecinku).",null,null,null,null,null,null,null,null,null,null,null,null,null,null,null,null,"posiadanie bez tytułu prawnego"]
[null,"4)","Należy podać jedną z form władania: własność, użytkowanie wieczyste, posiadanie samoistne, posiadanie zależne lub posiadanie bez tytułu prawnego."]
[null,null,null,null,null,null,null,null,null,null,null,null,null,null,null,null," ZIN-1(1)","1/2"]
[]
[" - STRONA 2 -"]
[]
[null," WYPEŁNIĆ DUŻYMI, DRUKOWANYMI LITERAMI, CZARNYM LUB NIEBIESKIM KOLOREM."]
[]
[null," B.2. BUDYNKI LUB ICH CZĘŚCI"]
[null," Lp."," Położenie (adres, w tym dzielnica)",null,null,null,null,null,null," Nr księgi wieczystej",null,"Nr obrębu\n(arkusza\nmapy)2)",null," Nr działki","Powierzchnia użytkowa","Forma władania4)"]
[null,null,null,null,null,null,null,null,null," (zbioru dokumentów)",null,null,null,null,"w m2"]
[null,null,"a",null,null,null,null,null,null,"b",null,"c",null,"d","e","f"]
[null,1]
[null,2]
[null,3]
[null,4]
[null,5]
[null,6]
[null,7]
[null,8]
[null," B.3. BUDOWLE LUB ICH CZĘŚCI ZWIĄZANE Z PROWADZENIEM DZIAŁALNOŚCI GOSPODARCZEJ"]
[null," Lp."," Nazwa budowli",null,null,null," Nr inwentarzowy",null," Położenie (adres, w tym dzielnica)",null,null,"Nr obrębu\n(arkusza\nmapy)2)",null," Nr działki"," Wartość w zł","Forma władania4)"]
[null,null,"a",null,null,null,"b",null,"c",null,null,"d",null,"e","f","g"]
[null,1]
[null,2]
[null,3]
[null,4]
[null,5]
[null,6]
[null,7]
[null,8]
[]
[null," ZIN-1(1)",null,"2/2"]

{"sheet":"ZIN-2","index":2,"n_rows":66,"n_cols":18,"rows_kept":66,"cut":false,"hidden":false,"merged":[[0,1,0,17],[1,1,1,17],[2,1,2,17],[3,1,3,11],[3,12,4,17],[4,1,4,4],[4,5,4,11],[10,1,10,17],[11,1,11,17],[12,1,12,17],[13,2,13,9],[13,10,13,17],[14,2,14,9],[14,10,14,17],[5,1,5,17],[6,1,6,17],[7,1,7,17],[8,1,9,15],[8,16,8,17],[9,16,9,17],[15,1,15,17],[16,1,16,17],[17,1,17,17],[18,1,19,1],[18,2,19,8],[18,9,18,10],[18,11,19,12],[18,13,19,13],[18,15,19,17],[19,9,19,10],[22,2,22,8],[22,9,22,10],[22,11,22,12],[22,15,22,17],[23,2,23,8],[23,9,23,10],[23,11,23,12],[23,15,23,17],[20,2,20,8],[20,9,20,10],[20,11,20,12],[20,15,20,17],[21,2,21,8],[21,9,21,10],[21,11,21,12],[21,15,21,17],[26,2,26,8],[26,9,26,10],[26,11,26,12],[26,15,26,17],[27,2,27,8],[27,9,27,10],[27,11,27,12],[27,15,27,17],[24,2,24,8],[24,9,24,10],[24,11,24,12],[24,15,24,17],[25,2,25,8],[25,9,25,10],[25,11,25,12],[25,15,25,17],[31,2,31,17],[32,2,32,17],[33,2,33,17],[34,2,34,17],[35,1,35,15],[36,1,36,17],[28,2,28,8],[28,9,28,10],[28,11,28,12],[28,15,28,17],[29,2,29,17],[30,2,30,17],[37,0,37,17],[38,1,38,17],[39,1,39,17],[40,1,40,17],[41,1,41,17],[42,1,43,1],[42,2,43,8],[42,9,42,10],[42,11,43,12],[42,13,43,13],[45,2,45,8],[45,9,45,10],[45,11,45,12],[45,15,45,17],[46,2,46,8],[46,9,46,10],[46,11,46,12],[46,15,46,17],[42,15,43,17],[43,9,43,10],[44,2,44,8],[44,9,44,10],[44,11,44,12],[44,15,44,17],[49,2,49,8],[49,9,49,10],[49,11,49,12],[49,15,49,17],[50,2,50,8],[50,9,50,10],[50,11,50,12],[50,15,50,17],[47,2,47,8],[47,9,47,10],[47,11,47,12],[47,15,47,17],[48,2,48,8],[48,9,48,10],[48,11,48,12],[48,15,48,17],[53,1,53,17],[54,2,54,5],[54,6,54,7],[54,8,54,10],[54,11,54,12],[54,15,54,17],[51,2,51,8],[51,9,51,10],[51,11,51,12],[51,15,51,17],[52,2,52,8],[52,9,52,10],[52,11,52,12],[52,15,52,17],[55,2,55,5],[55,6,55,7],[55,8,55,10],[55,11,55,12],[55,15,55,17],[56,2,56,5],[56,6,56,7],[56,8,56,10],[56,11,56,12],[56,15,56,17],[57,2,57,5],[57,6,57,7],[57,8,57,10],[57,11,57,12],[57,15,57,17],[58,2,58,5],[58,6,58,7],[58,8,58,10],[58,11,58,12],[58,15,58,17],[59,2,59,5],[59,6,59,7],[59,8,59,10],[59,11,59,12],[59,15,59,17],[60,2,60,5],[60,6,60,7],[60,8,60,10],[60,11,60,12],[60,15,60,17],[61,2,61,5],[61,6,61,7],[61,8,61,10],[61,11,61,12],[61,15,61,17],[62,2,62,5],[62,6,62,7],[62,8,62,10],[62,11,62,12],[62,15,62,17],[65,1,65,2],[65,4,65,17],[66,1,66,17],[63,2,63,5],[63,6,63,7],[63,8,63,10],[63,11,63,12],[63,15,63,17],[64,1,64,17]]}
[]
[null," WYPEŁNIĆ DUŻYMI, DRUKOWANYMI LITERAMI, CZARNYM LUB NIEBIESKIM KOLOREM."]
[]
[null," 1. Identyfikator podatkowy NIP / numer PESEL (niepotrzebne skreślić)1)",null,null,null,null,null,null,null,null,null,null," 2. Nr dokumentu"]
[null,null,null,null,null,{"$f":"IF('IN-1'!D5=\"\",\"\",'IN-1'!D5)","v":""}]
[null,"    ZIN-2"]
[null," ZAŁĄCZNIK DO INFORMACJI O NIERUCHOMOŚCIACH I OBIEKTACH BUDOWLANYCH"]
[null,"- DANE O PRZEDMIOTACH OPODATKOWANIA ZWOLNIONYCH Z OPODATKOWANIA"]
[null,null,null,null,null,null,null,null,null,null,null,null,null,null,null,null," 3. Nr załącznika"]
[null,null,null,null,null,null,null,null,null,null,null,null,null,null,null,null,"1"]
[]
[]
[null," A. DANE PODATNIKA WSKAZANEGO W CZĘŚCI C.1 INFORMACJI IN-1"]
[null,null," 4. Nazwisko",null,null,null,null,null,null,null," 5. Pierwsze imię"]
[null,null,{"$f":"IF('IN-1'!C33=\"\",\"\",'IN-1'!C33)","v":""},null,null,null,null,null,null,null,{"$f":"IF('IN-1'!O33=\"\",\"\",'IN-1'!O33)","v":""}]
[]
[null," B. DANE O POSZCZEGÓLNYCH PRZEDMIOTACH OPODATKOWANIA ZWOLNIONYCH Z OPODATKOWANIA"]
[null," B.1. GRUNTY"]
[null," Lp."," Położenie (adres, w tym dzielnica)",null,null,null,null,null,null,"Nr księgi wieczystej",null,"Nr obrębu\n(arkusza\nmapy)2)",null," Nr działki","Powierzchnia w m2 /","Podstawa prawna zwolnienia4)"]
[null,null,null,null,null,null,null,null,null,"(zbioru dokumentów)",null,null,null,null,"ha3)"]
[null,null,"a",null,null,null,null,null,null,"b",null,"c",null,"d","e","f"]
[null,1]
[null,2]
[null,3]
[null,4]
[null,5]
[null,6]
[null,7]
[null,8]
[null,"1)","Numer PESEL wpisują podatnicy będący osobami fizycznymi objętymi rejestrem PESEL, nieprowadzący działalności gospodarczej lub niebędący zarejestrowanymi podatnikami podatku od towarów i usług."]
[null,null,"Identyfikator podatkowy NIP wpisują pozostali podatnicy."]
[null,"2)","Numer obrębu należy podać wraz z numerem arkusza mapy ewidencyjnej w przypadku, gdy działki numerowane są w ramach arkusza mapy."]
[null,"3)","Powierzchnię w ha należy wykazać wyłącznie w przypadku gruntów pod wodami powierzchniowymi stojącymi lub wodami powierzchniowymi płynącymi jezior i zbiorników sztucznych (z dokładnością"]
[null,null,"do czterech miejsc po przecinku)."]
[null,"4)","Należy podać jednostkę redakcyjną z ustawy lub uchwały rady gminy."]
[null,null,null,null,null,null,null,null,null,null,null,null,null,null,null,null," ZIN-2(1)","1/2"]
[]
[" - STRONA 2 -"]
[]
[null," WYPEŁNIĆ DUŻYMI, DRUKOWANYMI LITERAMI, CZARNYM LUB NIEBIESKIM KOLOREM."]
[]
[null," B.2. BUDYNKI LUB ICH CZĘŚCI"]
[null," Lp."," Położenie (adres, w tym dzielnica)",null,null,null,null,null,null," Nr księgi wieczystej",null,"Nr obrębu\n(arkusza\nmapy)2)",null," Nr działki","Powierzchnia użytkowa","Podstawa prawna zwolnienia4)"]
[null,null,null,null,null,null,null,null,null," (zbioru dokumentów)",null,null,null,null,"w m2"]
[null,null,"a",null,null,null,null,null,null,"b",null,"c",null,"d","e","f"]
[null,1]
[null,2]
[null,3]
[null,4]
[null,5]
[null,6]
[null,7]
[null,8]
[null," B.3. BUDOWLE LUB ICH CZĘŚCI ZWIĄZANE Z PROWADZENIEM DZIAŁALNOŚCI GOSPODARCZEJ"]
[null," Lp."," Nazwa budowli",null,null,null," Nr inwentarzowy",null," Położenie (adres, w tym dzielnica)",null,null,"Nr obrębu\n(arkusza\nmapy)2)",null," Nr działki"," Wartość w zł","Podstawa prawna zwolnienia4)"]
[null,null,"a",null,null,null,"b",null,"c",null,null,"d",null,"e","f","g"]
[null,1]
[null,2]
[null,3]
[null,4]
[null,5]
[null,6]
[null,7]
[null,8]
[]
[null," ZIN-2(1)",null,"2/2"]

{"sheet":"ZIN-3","index":3,"n_rows":122,"n_cols":19,"rows_kept":122,"cut":false,"hidden":false,"merged":[[48,18,48,21],[49,18,49,21],[50,18,50,21],[51,18,51,21],[52,18,52,21],[53,18,53,21],[54,18,54,21],[45,2,45,7],[45,8,45,16],[39,18,39,21],[40,18,40,21],[41,18,41,21],[42,18,42,21],[43,18,43,21],[44,18,44,21],[45,18,45,21],[46,18,46,21],[47,18,47,21],[5,1,5,16],[6,1,6,16],[7,1,7,16],[8,1,8,16],[9,1,9,16],[10,1,10,16],[0,1,0,16],[1,1,1,16],[2,1,2,16],[3,9,4,16],[4,1,4,8],[3,1,3,8],[15,2,15,9],[15,10,15,16],[16,2,16,9],[16,10,16,16],[17,2,17,9],[17,10,17,16],[11,2,11,9],[11,10,11,16],[12,2,12,9],[12,10,12,16],[13,1,13,16],[14,1,14,16],[23,2,23,7],[23,8,23,11],[23,12,23,16],[24,1,24,16],[25,2,25,5],[25,6,25,10],[25,11,25,16],[18,2,18,9],[18,10,18,16],[19,2,19,16],[21,1,21,16],[22,2,22,7],[22,8,22,11],[22,12,22,16],[20,2,20,7],[20,8,20,16],[28,2,28,6],[28,7,28,13],[28,15,28,16],[29,2,29,9],[29,10,29,16],[30,2,30,9],[30,10,30,16],[26,2,26,5],[26,6,26,10],[26,11,26,16],[27,2,27,6],[27,7,27,13],[27,15,27,16],[34,2,34,6],[34,7,34,13],[34,15,34,16],[35,2,35,6],[35,7,35,13],[35,15,35,16],[31,1,31,16],[32,2,32,5],[32,6,32,10],[32,11,32,16],[33,2,33,5],[33,6,33,10],[33,11,33,16],[40,2,40,9],[40,10,40,16],[41,2,41,9],[41,10,41,16],[42,2,42,9],[42,10,42,16],[36,2,36,9],[36,10,36,16],[37,2,37,9],[37,10,37,16],[38,1,38,16],[39,1,39,16],[48,2,48,7],[48,8,48,11],[48,12,48,16],[49,1,49,16],[50,2,50,5],[50,6,50,10],[50,11,50,16],[43,2,43,9],[43,10,43,16],[44,2,44,16],[46,1,46,16],[47,2,47,7],[47,8,47,11],[47,12,47,16],[53,2,53,6],[53,7,53,13],[53,15,53,16],[54,2,54,9],[54,10,54,16],[55,2,55,9],[55,10,55,16],[51,2,51,5],[51,6,51,10],[51,11,51,16],[52,2,52,6],[52,7,52,13],[52,15,52,16],[59,1,59,16],[60,1,60,16],[61,1,61,16],[62,2,62,5],[62,6,62,10],[62,11,62,16],[56,1,56,16],[57,1,57,12],[57,13,57,15],[58,0,58,17],[65,2,65,6],[65,7,65,13],[65,15,65,16],[66,2,66,9],[66,10,66,16],[67,2,67,9],[67,10,67,16],[63,2,63,5],[63,6,63,10],[63,11,63,16],[64,2,64,6],[64,7,64,13],[64,15,64,16],[74,1,74,16],[75,1,75,16],[76,1,76,16],[77,1,77,16],[78,1,78,16],[79,1,79,16],[68,1,68,16],[69,1,69,16],[70,1,70,16],[71,1,71,16],[72,1,72,16],[73,1,73,16],[86,1,86,16],[87,1,87,16],[88,1,88,16],[89,1,89,16],[90,1,90,16],[91,1,91,16],[80,1,80,16],[81,1,81,16],[82,1,82,16],[83,1,83,16],[84,1,84,16],[85,1,85,16],[98,1,98,16],[99,1,99,16],[100,1,100,16],[101,1,101,16],[102,1,102,16],[103,1,103,16],[92,1,92,16],[93,1,93,16],[94,1,94,16],[95,1,95,16],[96,1,96,16],[97,1,97,16],[110,1,110,16],[111,1,111,16],[112,1,112,16],[113,1,113,16],[114,1,114,16],[115,1,115,16],[104,1,104,16],[105,1,105,16],[106,1,106,16],[107,1,107,16],[108,1,108,16],[109,1,109,16],[121,1,121,2],[121,3,121,4],[121,5,121,16],[122,1,122,16],[116,1,116,16],[117,1,117,16],[118,1,118,16],[119,1,119,16],[120,1,120,16]]}
[]
[null," WYPEŁNIĆ DUŻYMI, DRUKOWANYMI LITERAMI, CZARNYM LUB NIEBIESKIM KOLOREM."]
[]
[null," 1. Identyfikator podatkowy NIP / numer PESEL (niepotrzebne skreślić)1)",null,null,null,null,null,null,null," 2. Nr dokumentu"]
[null,{"$f":"IF('IN-1'!D5=\"\",\"\",'IN-1'!D5)","v":""}]
[null,"ZIN-3"]
[null,"ZAŁĄCZNIK DO INFORMACJI O NIERUCHOMOŚCIACH I OBIEKTACH BUDOWLANYCH"]
[null," - DANE POZOSTAŁYCH PODATNIKÓW"]
[]
[]
[null," A. DANE PODATNIKA WSKAZANEGO W CZĘŚCI C.1 INFORMACJI IN-1"]
[null,null," 3. Nazwisko",null,null,null,null,null,null,null," 4. Pierwsze imię"]
[null,null,{"$f":"IF('IN-1'!C33=\"\",\"\",'IN-1'!C33)","v":""},null,null,null,null,null,null,null,{"$f":"IF('IN-1'!O33=\"\",\"\",'IN-1'!O33)","v":""}]
[]
[null," B. DANE IDENTYFIKACYJNE PODATNIKA WSKAZANEGO W CZĘŚCI G.2 INFORMACJI IN-1"]
[null,null," 5. Nazwisko",null,null,null,null,null,null,null," 6. Pierwsze imię"]
[null,null,{"$f":"IF('IN-1'!O197=\"\",\"\",'IN-1'!O197)","v":""},null,null,null,null,null,null,null,{"$f":"IF('IN-1'!C197=\"\",\"\",'IN-1'!C197)","v":""}]
[null,null," 7. Identyfikator podatkowy NIP1)",null,null,null,null,null,null,null," 8. Numer PESEL1)"]
[]
[null,null," 9. Identyfikator REGON (w przypadku osób fizycznych REGON podaje się, o ile został nadany)"]
[]
[null,"Pola 10, 11, 12 wypełnia osoba fizyczna w przypadku, gdy numer PESEL nie został nadany."]
[null,null," 10. Data urodzenia (dzień-miesiąc-rok)",null,null,null,null,null," 11. Imię ojca",null,null,null," 12. Imię matki"]
[]
[null," B.1. ADRES ZAMIESZKANIA"]
[null,null," 13. Kraj",null,null,null," 14. Województwo",null,null,null,null," 15. Powiat"]
[]
[null,null," 16. Gmina",null,null,null,null," 17. Ulica",null,null,null,null,null,null," 18. Nr domu"," 19. Nr lokalu"]
[]
[null,null," 20. Miejscowość",null,null,null,null,null,null,null," 21. Kod pocztowy"]
[]
[null," B.2. ADRES DO DORĘCZEŃ Należy wypełnić tylko wówczas, gdy adres do doręczeń jest inny niż w części B.1."]
[null,null," 22. Kraj",null,null,null," 23. Województwo",null,null,null,null," 24. Powiat"]
[]
[null,null," 25. Gmina",null,null,null,null," 26. Ulica",null,null,null,null,null,null," 27. Nr domu"," 28. Nr lokalu"]
[]
[null,null," 29. Miejscowość",null,null,null,null,null,null,null," 30. Kod pocztowy"]
[]
[]
[null," C. DANE IDENTYFIKACYJNE PODATNIKA WSKAZANEGO W CZĘŚCI G.3 INFORMACJI IN-1",null,null,null,null,null,null,null,null,null,null,null,null,null,null,null,null,"Dolnośląskie"]
[null,null," 31. Nazwisko",null,null,null,null,null,null,null," 32. Pierwsze imię",null,null,null,null,null,null,null,"Kujawsko-Pomorskie"]
[null,null,{"$f":"IF('IN-1'!O202=\"\",\"\",'IN-1'!O202)","v":""},null,null,null,null,null,null,null,{"$f":"IF('IN-1'!C202=\"\",\"\",'IN-1'!C202)","v":""},null,null,null,null,null,null,null,"Lubelskie"]
[null,null," 33. Identyfikator podatkowy NIP1)",null,null,null,null,null,null,null," 34. Numer PESEL1)",null,null,null,null,null,null,null,"Lubuskie"]
[null,null,null,null,null,null,null,null,null,null,null,null,null,null,null,null,null,null,"Łódzkie"]
[null,null," 35. Identyfikator REGON (w przypadku osób fizycznych REGON podaje się, o ile został nadany)",null,null,null,null,null,null,null,null,null,null,null,null,null,null,null,"Małopolskie"]
[null,null,null,null,null,null,null,null,null,null,null,null,null,null,null,null,null,null,"Mazowieckie"]
[null,"Pola 36, 37, 38 wypełnia osoba fizyczna w przypadku, gdy numer PESEL nie został nadany.",null,null,null,null,null,null,null,null,null,null,null,null,null,null,null,null,"Opolskie"]
[null,null," 36. Data urodzenia (dzień-miesiąc-rok)",null,null,null,null,null," 37. Imię ojca",null,null,null," 38. Imię matki",null,null,null,null,null,"Podkarpackie"]
[null,null,null,null,null,null,null,null,null,null,null,null,null,null,null,null,null,null,"Podlaskie"]
[null," C.1. ADRES ZAMIESZKANIA",null,null,null,null,null,null,null,null,null,null,null,null,null,null,null,null,"Pomorskie"]
[null,null," 39. Kraj",null,null,null," 40. Województwo",null,null,null,null," 41. Powiat",null,null,null,null,null,null,"Śląskie"]
[null,null,null,null,null,null,null,null,null,null,null,null,null,null,null,null,null,null,"Świętokrzyskie"]
[null,null," 42. Gmina",null,null,null,null," 43. Ulica",null,null,null,null,null,null," 44. Nr domu"," 45. Nr lokalu",null,null,"Warmińsko-Mazurskie"]
[null,null,null,null,null,null,null,null,null,null,null,null,null,null,null,null,null,null,"Wielkopolskie"]
[null,null," 46. Miejscowość",null,null,null,null,null,null,null," 47. Kod pocztowy",null,null,null,null,null,null,null,"Zachodniopomorskie"]
[]
[]
[null,null,null,null,null,null,null,null,null,null,null,null,null,"ZIN-3(1)",null,null,"1/2"]
["- STRONA 2 -"]
[null," WYPEŁNIĆ DUŻYMI, DRUKOWANYMI LITERAMI, CZARNYM LUB NIEBIESKIM KOLOREM."]
[]
[null," C.2. ADRES DO DORĘCZEŃ Należy wypełnić tylko wówczas, gdy adres do doręczeń jest inny niż w części C.1."]
[null,null," 48. Kraj",null,null,null," 49. Województwo",null,null,null,null," 50. Powiat"]
[]
[null,null," 51. Gmina",null,null,null,null," 52. Ulica",null,null,null,null,null,null," 53. Nr domu"," 54. Nr lokalu"]
[]
[null,null," 55. Miejscowość",null,null,null,null,null,null,null," 56. Kod pocztowy"]
[]
[null,"           1)      Numer PESEL wpisują podatnicy będący osobami fizycznymi objętymi rejestrem PESEL, nieprowadzący działalności gospodarczej lub niebędący"]
[null,"zarejestrowanymi podatnikami podatku od towarów i usług. Identyfikator podatkowy NIP wpisują pozostali podatnicy."]
[]
[]
[]
[]
[]
[]
[]
[]
[]
[]
[]
[]
[]
[]
[]
[]
[]
[]
[]
[]
[]
[]
[]
[]
[]
[]
[]
[]
[]
[]
[]
[]
[]
[]
[]
[]
[]
[]
[]
[]
[]
[]
[]
[]
[]
[]
[]
[]
[]
[]
[]
[null,"ZIN-3(1)",null,"2/2"]